fUSD/lending_fUSD_20240114
["ID","MTS","AMOUNT","RATE_DAILY","PERIOD"]
[311634695,1705275042089,-241.7206344,0.00025027,9]
[311634697,1705275042099,-19806.44175043,0.00025112,2]
[311634699,1705275042108,-205.0,0.00025131,6]
[311634701,1705275042118,-2031.16316113,0.00025166,2]
[311634703,1705275042128,-156.08,0.00025276,2]
[311634705,1705275042139,-209.56426997,0.00025314,2]
[311634707,1705275042148,-150.0,0.00025314,2]
[311634709,1705275042157,-697.66,0.00025449,2]
[311634711,1705275042169,-207.0,0.0002546,2]
[311634713,1705275042181,-19806.44175043,0.00025933,2]
[311634715,1705275042190,-187.17,0.00025936,2]
[311634717,1705275042199,-3071.0,0.00026,2]
[311634719,1705275042209,-300.0,0.00026,2]
[311634721,1705275042222,-150.0,0.00026,2]
[311634723,1705275042231,-300.0,0.00026,2]
[311634725,1705275042240,-150.0,0.00026079,2]
[311634727,1705275042250,-156.08,0.00026102,2]
[311634729,1705275042259,-500.0,0.00026289,2]
[311634731,1705275042268,-1000.0,0.000263,2]
[311634733,1705275042277,-207.0,0.0002635,2]
[311634735,1705275042286,-3982.0,0.000264,2]
[311634737,1705275042295,-453.27,0.00026418,2]
[311634739,1705275042304,-697.66,0.00026427,2]
[311634742,1705275042314,-2031.16316113,0.00026469,3]
[311634744,1705275042324,-150.48,0.00026474,2]
[311634746,1705275042334,-1599.95,0.00026575,2]
[311634748,1705275042343,-9013.43,0.00026575,2]
[311634750,1705275042351,-9962.11,0.00026591,2]
[311634752,1705275042360,-50259.0,0.000267,2]
[311634754,1705275042369,-166.0,0.000267,2]
[311634756,1705275042378,-19806.44175043,0.00026754,2]
[311634757,1705275042387,-1366.64636091,0.0002676,2]
[311634759,1705275042396,-1096.52069624,0.0002676,2]
[311634760,1705275042405,-228.97878998,0.0002676,2]
[311634762,1705275042414,-1355.03956553,0.0002676,2]
[311634763,1705275042424,-1296.94233191,0.0002676,2]
[311634764,1705275042434,-5000.0,0.000269,2]
[311634765,1705275042443,-568.06,0.00026965,2]
[311634766,1705275042452,-539.92,0.00026982,2]
[311634768,1705275042461,-413.5421,0.00027,2]
[311634770,1705275042470,-400.0,0.00027,3]
[311634772,1705275042480,-300.0,0.00027,2]
[311634774,1705275042489,-150.0,0.00027,2]
[311634777,1705275042498,-300.0,0.00027,2]
[311634780,1705275042507,-55555.0,0.00027085,2]
[311634783,1705275042517,-151.0,0.00027085,7]
[311634786,1705275042526,-151.0,0.00027085,7]
[311634788,1705275042535,-151.0,0.00027085,7]
[311634791,1705275042545,-151.0,0.00027085,7]
[311634795,1705275042554,-151.0,0.00027085,7]
[311634798,1705275042563,-213.08,0.00027085,7]
[311634801,1705275042575,-151.0,0.00027085,7]
[311634804,1705275042585,-588.64695,0.00027085,7]
[311634807,1705275042594,-588.64695,0.00027085,7]
[311634810,1705275042602,-151.0,0.00027085,7]
[311634813,1705275042611,-238.836276,0.00027085,7]
[311634816,1705275042621,-151.0,0.00027085,7]
[311634818,1705275042630,-151.0,0.00027085,7]
[311634820,1705275042639,-575.027146,0.0002714,7]
[311634822,1705275042648,-575.027146,0.0002714,7]
[311634824,1705275042657,-241.7206344,0.00027153,13]
[311634826,1705275042667,-262.073,0.00027186,2]
[311634828,1705275042676,-2903.0,0.00027186,2]
[311634830,1705275042686,-2271.0,0.00027186,2]
[311634832,1705275042695,-2949.669,0.00027186,2]
[311634834,1705275042704,-1029.0,0.00027186,2]
[311634836,1705275042713,-523.218,0.00027186,2]
[311634838,1705275042722,-830.0,0.00027186,2]
[311634840,1705275042731,-1252.0,0.00027186,2]
[311634842,1705275042741,-1234.0,0.00027186,2]
[311634844,1705275042750,-207.0,0.0002724,2]
[311634846,1705275042761,-164.854162,0.000273,7]
[311634848,1705275042771,-164.854162,0.000273,7]
[311634850,1705275042780,-1000.0,0.000273,2]
[311634852,1705275042790,-6035.40303043,0.000273,2]
[311634854,1705275042801,-6035.40303043,0.000273,2]
[311634856,1705275042810,-6035.40303043,0.000273,2]
[311634858,1705275042819,-6035.40303043,0.000273,2]
[311634860,1705275042829,-6035.40303043,0.000273,2]
[311634862,1705275042838,-6035.40303043,0.000273,2]
[311634864,1705275042847,-6035.40303043,0.000273,2]
[311634866,1705275042857,-6035.40303043,0.000273,2]
[311634868,1705275042866,-6035.40303043,0.000273,2]
[311634870,1705275042875,-6035.40303043,0.000273,2]
[311634872,1705275042884,-6035.40303043,0.000273,2]
[311634874,1705275042893,-6035.40303043,0.000273,2]
[311634876,1705275042902,-6035.40303043,0.000273,2]
[311634878,1705275042911,-6035.40303043,0.000273,2]
[311634880,1705275042921,-6035.40303043,0.000273,2]
[311634882,1705275042930,-6035.40303043,0.000273,2]
[311634884,1705275042939,-6035.40303043,0.000273,2]
[311634886,1705275042949,-6035.40303043,0.000273,2]
[311634888,1705275042958,-6035.40303043,0.000273,2]
[311634890,1705275042967,-6035.40303043,0.000273,2]
[311634892,1705275042976,-200.0,0.00027397,5]
[311634894,1705275042985,-155.0,0.00027397,2]
[311634896,1705275042994,-14046.36,0.00027397,2]
[311634898,1705275043003,-250.0,0.00027397,2]
[311634900,1705275043013,-2500.0,0.00027397,4]
[311634902,1705275043022,-1977.82,0.00027397,10]
[311634904,1705275043031,-1648.19,0.00027397,10]
[311634906,1705275043041,-1373.49,0.00027397,10]
[311634908,1705275043050,-151.0,0.00027399,7]
[311634910,1705275043059,-500.0,0.00027399,2]
[311634912,1705275043068,-500.0,0.00027399,2]
[311634914,1705275043077,-500.0,0.00027399,2]
[311634916,1705275043086,-500.0,0.00027399,2]
[311634918,1705275043095,-500.0,0.00027399,2]
[311634920,1705275043104,-500.0,0.00027399,2]
[311634922,1705275043113,-500.0,0.00027399,2]
[311634924,1705275043121,-500.0,0.00027399,2]
[311634926,1705275043130,-500.0,0.00027399,2]
[311634928,1705275043140,-500.0,0.00027399,2]
[311634930,1705275043149,-500.0,0.00027399,2]
[311634932,1705275043158,-500.0,0.00027399,2]
[311634934,1705275043170,-500.0,0.00027399,2]
[311634936,1705275043179,-500.0,0.00027399,2]
[311634938,1705275043188,-500.0,0.00027399,2]
[311634940,1705275043197,-500.0,0.00027399,2]
[311634942,1705275043206,-500.0,0.00027399,2]
[311634944,1705275043215,-500.0,0.00027399,2]
[311634945,1705275043227,-500.0,0.00027399,2]
[311634947,1705275043236,-500.0,0.00027399,2]
[311634949,1705275043246,-500.0,0.00027399,2]
[311634952,1705275043255,-500.0,0.00027399,2]
[311634953,1705275043264,-500.0,0.00027399,2]
[311634955,1705275043273,-500.0,0.00027399,2]
[311634957,1705275043283,-250.0,0.00027399,2]
[311634959,1705275043292,-500.0,0.00027399,2]
[311634961,1705275043300,-500.0,0.00027399,2]
[311634963,1705275043309,-500.0,0.00027399,2]
[311634965,1705275043318,-500.0,0.00027399,2]
[311634967,1705275043327,-500.0,0.00027399,2]
[311634969,1705275043336,-500.0,0.00027399,2]
[311634971,1705275043345,-500.0,0.00027399,2]
[311634973,1705275043354,-500.0,0.00027399,2]
[311634975,1705275043363,-500.0,0.00027399,2]
[311634977,1705275043372,-500.0,0.00027399,2]
[311634979,1705275043381,-500.0,0.00027399,2]
[311634981,1705275043390,-500.0,0.00027399,2]
[311634983,1705275043399,-500.0,0.00027399,2]
[311634985,1705275043408,-500.0,0.00027399,2]
[311634987,1705275043419,-500.0,0.00027399,2]
[311634989,1705275043428,-500.0,0.00027399,2]
[311634991,1705275043437,-500.0,0.00027399,2]
[311634993,1705275043446,-500.0,0.00027399,2]
[311634995,1705275043455,-500.0,0.00027399,2]
[311634997,1705275043464,-500.0,0.00027399,2]
[311634999,1705275043474,-500.0,0.00027399,2]
[311635001,1705275043483,-500.0,0.00027399,2]
[311635003,1705275043492,-500.0,0.00027399,2]
[311635005,1705275043501,-500.0,0.00027399,2]
[311635007,1705275043510,-500.0,0.00027399,2]
[311635009,1705275043519,-500.0,0.00027399,2]
[311635011,1705275043528,-500.0,0.00027399,2]
[311635013,1705275043538,-500.0,0.00027399,2]
[311635015,1705275043547,-500.0,0.00027399,2]
[311635017,1705275043557,-500.0,0.00027399,2]
[311635019,1705275043566,-500.0,0.00027399,2]
[311635021,1705275043576,-500.0,0.00027399,2]
[311635023,1705275043585,-500.0,0.00027399,2]
[311635025,1705275043594,-500.0,0.00027399,2]
[311635028,1705275043604,-500.0,0.00027399,2]
[311635030,1705275043613,-400.0,0.00027399,2]
[311635032,1705275043622,-500.0,0.00027399,2]
[311635034,1705275043632,-500.0,0.00027399,2]
[311635035,1705275043640,-500.0,0.00027399,2]
[311635037,1705275043650,-500.0,0.00027399,2]
[311635039,1705275043659,-450.0,0.000274,2]
[311635042,1705275043670,-500.0,0.000274,2]
[311635044,1705275043679,-500.0,0.000274,2]
[311635046,1705275043689,-500.0,0.000274,2]
[311635048,1705275043698,-500.0,0.000274,2]
[311635050,1705275043708,-500.0,0.000274,2]
[311635052,1705275043717,-500.0,0.000274,2]
[311635053,1705275043726,-500.0,0.000274,2]
[311635056,1705275043735,-500.0,0.000274,2]
[311635058,1705275043745,-500.0,0.000274,2]
[311635060,1705275043754,-500.0,0.000274,2]
[311635062,1705275043764,-500.0,0.000274,2]
[311635064,1705275043773,-500.0,0.000274,2]
[311635065,1705275043782,-500.0,0.000274,2]
[311635067,1705275043791,-500.0,0.000274,2]
[311635070,1705275043801,-500.0,0.000274,2]
[311635072,1705275043810,-500.0,0.000274,2]
[311635074,1705275043819,-500.0,0.000274,2]
[311635076,1705275043828,-500.0,0.000274,2]
[311635078,1705275043838,-164.854162,0.000274,7]
[311635079,1705275043847,-164.854162,0.000274,7]
[311635080,1705275043858,-151.0,0.000274,7]
[311635081,1705275043869,-151.0,0.000274,7]
[311635082,1705275043879,-151.0,0.000274,7]
[311635083,1705275043890,-151.0,0.000274,7]
[311635084,1705275043900,-156.066034,0.000274,7]
[311635085,1705275043909,-5687.92805834,0.000274,2]
[311635086,1705275043922,-250.0,0.000274,2]
[311635087,1705275043932,-575.027146,0.000274,7]
[311635088,1705275043941,-575.027146,0.000274,7]
[311635089,1705275043951,-8000.0,0.000274,2]
[311635090,1705275043960,-588.64695,0.000274,7]
[311635091,1705275043969,-588.64695,0.000274,7]
[311635092,1705275043981,-151.0,0.000274,7]
[311635093,1705275043990,-1515.54,0.000274,2]
[311635094,1705275044001,-1515.54,0.000274,2]
[311635095,1705275044010,-1515.54,0.000274,2]
[311635096,1705275044021,-1515.54,0.000274,2]
[311635097,1705275044030,-1515.54,0.000274,2]
[311635098,1705275044039,-1515.54,0.000274,2]
[311635099,1705275044048,-1515.54,0.000274,2]
[311635100,1705275044057,-1515.54,0.000274,2]
[311635101,1705275044065,-1515.54,0.000274,2]
[311635102,1705275044074,-697.66,0.00027406,2]
[311635103,1705275044083,-14046.36,0.00027556,2]
[311635104,1705275044092,-250.0,0.00027575,2]
[311635105,1705275044101,-500.0,0.00027575,2]
[311635106,1705275044109,-500.0,0.00027575,2]
[311635108,1705275044120,-500.0,0.00027575,2]
[311635110,1705275044130,-500.0,0.00027575,2]
[311635111,1705275044139,-500.0,0.00027575,2]
[311635112,1705275044148,-500.0,0.00027575,2]
[311635113,1705275044157,-500.0,0.00027575,2]
[311635114,1705275044169,-500.0,0.00027575,2]
[311635115,1705275044178,-500.0,0.00027575,2]
[311635116,1705275044188,-500.0,0.00027575,2]
[311635117,1705275044197,-500.0,0.00027575,2]
[311635118,1705275044206,-500.0,0.00027575,2]
[311635119,1705275044218,-500.0,0.00027575,2]
[311635120,1705275044228,-500.0,0.00027575,2]
[311635121,1705275044237,-500.0,0.00027575,2]
[311635122,1705275044246,-500.0,0.00027575,2]
[311635123,1705275044255,-500.0,0.00027575,2]
[311635124,1705275044264,-500.0,0.00027575,2]
[311635125,1705275044273,-500.0,0.00027575,2]
[311635126,1705275044281,-500.0,0.00027575,2]
[311635127,1705275044290,-500.0,0.00027575,2]
[311635128,1705275044300,-500.0,0.00027575,2]
[311635129,1705275044309,-500.0,0.00027575,2]
[311635130,1705275044318,-500.0,0.00027575,2]
[311635131,1705275044327,-500.0,0.00027575,2]
[311635132,1705275044336,-500.0,0.00027575,2]
[311635133,1705275044345,-500.0,0.00027575,2]
[311635134,1705275044354,-500.0,0.00027575,2]
[311635135,1705275044364,-500.0,0.00027575,2]
[311635136,1705275044373,-500.0,0.00027575,2]
[311635137,1705275044383,-500.0,0.00027575,2]
[311635138,1705275044391,-500.0,0.00027575,2]
[311635139,1705275044401,-500.0,0.00027575,2]
[311635140,1705275044410,-500.0,0.00027575,2]
[311635141,1705275044419,-500.0,0.00027575,2]
[311635142,1705275044428,-500.0,0.00027575,2]
[311635143,1705275044437,-500.0,0.00027575,2]
[311635144,1705275044446,-500.0,0.00027575,2]
[311635145,1705275044455,-500.0,0.00027575,2]
[311635146,1705275044465,-500.0,0.00027575,2]
[311635147,1705275044474,-500.0,0.00027575,2]
[311635148,1705275044483,-500.0,0.00027575,2]
[311635149,1705275044492,-500.0,0.00027575,2]
[311635150,1705275044501,-500.0,0.00027575,2]
[311635151,1705275044510,-500.0,0.00027575,2]
[311635152,1705275044519,-500.0,0.00027575,2]
[311635153,1705275044528,-500.0,0.00027575,2]
[311635154,1705275044538,-500.0,0.00027575,2]
[311635155,1705275044547,-500.0,0.00027575,2]
[311635156,1705275044556,-500.0,0.00027575,2]
[311635157,1705275044566,-500.0,0.00027575,2]
[311635158,1705275044575,-500.0,0.00027575,2]
[311635159,1705275044585,-500.0,0.00027575,2]
[311635160,1705275044594,-500.0,0.00027575,2]
[311635161,1705275044603,-500.0,0.00027575,2]
[311635162,1705275044612,-500.0,0.00027575,2]
[311635163,1705275044621,-500.0,0.00027575,2]
[311635164,1705275044630,-500.0,0.00027575,2]
[311635165,1705275044639,-500.0,0.00027575,2]
[311635166,1705275044648,-500.0,0.00027575,2]
[311635167,1705275044657,-500.0,0.00027575,2]
[311635168,1705275044666,-500.0,0.00027575,2]
[311635169,1705275044676,-500.0,0.00027575,2]
[311635170,1705275044685,-500.0,0.00027575,2]
[311635171,1705275044695,-500.0,0.00027575,2]
[311635172,1705275044704,-500.0,0.00027575,2]
[311635173,1705275044940,-500.0,0.00027575,2]
[311635174,1705275044951,-500.0,0.00027575,2]
[311635175,1705275044960,-500.0,0.00027575,2]
[311635176,1705275044971,-19806.44175043,0.00027575,2]
[311635177,1705275044980,-14046.36,0.00027714,2]
[311635178,1705275044990,-2031.16316113,0.00027772,3]
[311635179,1705275045000,-205.0,0.00027813,10]
[311635180,1705275045009,-14046.36,0.00027872,2]
[311635181,1705275045019,-687.85574589,0.00028,2]
[311635182,1705275045028,-202.15120204,0.00028,2]
[311635183,1705275045037,-19381.73014786,0.00028,2]
[311635184,1705275045046,-3748.31613677,0.00028,2]
[311635185,1705275045055,-3000.0,0.00028,2]
[311635186,1705275045065,-151.0,0.00028,7]
[311635187,1705275045074,-300.0,0.00028,2]
[311635188,1705275045083,-150.0,0.00028,2]
[311635189,1705275045092,-397.454311,0.00028,2]
[311635190,1705275045102,-3000.0,0.0002801,2]
[311635191,1705275045111,-297.63891187,0.00028011,2]
[311635192,1705275045121,-3000.0,0.0002802,2]
[311635193,1705275045130,-3000.0,0.0002803,2]
[311635194,1705275045139,-14046.36,0.0002803,2]
[311635195,1705275045149,-3000.0,0.0002804,2]
[311635196,1705275045158,-151.0,0.0002804,7]
[311635197,1705275045171,-3000.0,0.0002805,2]
[311635198,1705275045181,-3000.0,0.0002806,2]
[311635199,1705275045190,-3000.0,0.0002807,2]
[311635200,1705275045200,-3000.0,0.0002808,2]
[311635201,1705275045209,-3000.0,0.0002809,2]
[311635202,1705275045218,-3000.0,0.000281,2]
[311635203,1705275045227,-3000.0,0.0002811,2]
[311635204,1705275045237,-3000.0,0.0002812,2]
[311635205,1705275045246,-151.0,0.0002812,7]
[311635206,1705275045256,-207.0,0.0002813,2]
[311635207,1705275045265,-3000.0,0.0002813,2]
[311635208,1705275045274,-164.854162,0.0002813,7]
[311635209,1705275045284,-164.854162,0.0002813,7]
[311635210,1705275045294,-3000.0,0.0002814,2]
[311635211,1705275045303,-3000.0,0.0002815,2]
[311635212,1705275045313,-3000.0,0.0002816,2]
[311635213,1705275045322,-151.0,0.0002816,7]
[311635214,1705275045331,-3000.0,0.0002817,2]
[311635215,1705275045341,-3000.0,0.0002818,2]
[311635216,1705275045350,-14046.36,0.00028189,2]
[311635217,1705275045359,-3000.0,0.0002819,2]
[311635218,1705275045368,-3000.0,0.000282,2]
[311635219,1705275045377,-3000.0,0.0002821,2]
[311635220,1705275045387,-3000.0,0.0002822,2]
[311635221,1705275045396,-3000.0,0.0002823,2]
[311635222,1705275045405,-3000.0,0.0002824,2]
[311635223,1705275045415,-575.027146,0.0002824,7]
[311635224,1705275045426,-575.027146,0.0002824,7]
[311635225,1705275045435,-588.64695,0.0002824,7]
[311635226,1705275045445,-588.64695,0.0002824,7]
[311635227,1705275045454,-151.0,0.0002824,7]
[311635228,1705275045463,-3403.729071,0.0002825,2]
[311635229,1705275045472,-2018.478868,0.000283,2]
[311635230,1705275045482,-1000.0,0.000283,2]
[311635231,1705275045491,-14046.36,0.00028347,2]
[311635232,1705275045501,-697.66,0.00028384,2]
[311635233,1705275045510,-19806.44175043,0.00028396,2]
[311635234,1705275045519,-322.6212628,0.000285,2]
[311635235,1705275045529,-14046.36,0.00028505,2]
[311635236,1705275045538,-14046.36,0.00028664,2]
[311635237,1705275045547,-453.27,0.00028682,2]
[311635238,1705275045556,-150.48,0.00028683,2]
[311635239,1705275045565,-155.0,0.00028767,2]
[311635240,1705275045575,-1007.6671,0.00028799,2]
[311635241,1705275045585,-6988.0,0.000288,2]
[311635242,1705275045594,-14046.36,0.00028822,2]
[311635243,1705275045603,-939.96563616,0.00029,15]
[311635244,1705275045612,-668.26053,0.00029,2]
[311635245,1705275045621,-450.0,0.00029,3]
[311635246,1705275045631,-300.0,0.00029,2]
[311635247,1705275045640,-207.0,0.0002901,2]
[311635248,1705275045649,-2031.16316113,0.00029075,4]
[311635249,1705275045658,-19806.44175043,0.00029217,2]
[311635250,1705275045669,-241.7206344,0.0002928,16]
[311635251,1705275045679,-2000.0,0.000293,2]
[311635252,1705275045688,-1000.0,0.000293,2]
[311635253,1705275045698,-697.66,0.00029363,2]
[311635254,1705275045708,-187.78095067,0.000295,3]
[311635255,1705275045717,-568.06,0.00029662,2]
[311635256,1705275045727,-539.92,0.0002968,2]
[311635257,1705275045736,-164.854162,0.00029684,7]
[311635258,1705275045746,-164.854162,0.00029684,7]
[311635259,1705275045755,-151.0,0.00029684,7]
[311635260,1705275045765,-434.10435508,0.00029798,5]
[311635261,1705275045775,-175.36700291,0.000298,2]
[311635262,1705275045784,-210.0,0.000299,2]
[311635263,1705275045794,-207.0,0.000299,2]
[311635264,1705275045803,-188175.6711112,0.000299,3]
[311635265,1705275045812,-164.854162,0.000299,7]
[311635266,1705275045822,-164.854162,0.000299,7]
[311635267,1705275045832,-151.0,0.000299,7]
[311635268,1705275045841,-575.027146,0.000299,7]
[311635269,1705275045850,-575.027146,0.000299,7]
[311635270,1705275045860,-225.9464656,0.000299,7]
[311635271,1705275045869,-2500.0,0.000299,10]
[311635272,1705275045878,-588.64695,0.000299,7]
[311635273,1705275045888,-588.64695,0.000299,7]
[311635274,1705275045897,-151.0,0.000299,7]
[311635275,1705275045907,-151.0,0.000299,7]
[311635276,1705275045916,-276.0,0.00029912,2]
[311635277,1705275045927,-653.63963462,0.0002998,3]
[311635278,1705275045936,-200.15035242,0.0002998,3]
[311635279,1705275045946,-166801.83648139,0.0002998,2]
[311635280,1705275045955,-2385.58523135,0.00029997,2]
[311635281,1705275045964,-588.64695,0.00029999,7]
[311635282,1705275045974,-588.64695,0.00029999,7]
[311635283,1705275045983,-151.0,0.00029999,7]
[311635284,1705275045993,-151.0,0.00029999,7]
[311635285,1705275046002,-391.37190599,0.00029999,2]
[311635286,1705275046011,-465.75689909,0.00029999,2]
[311635287,1705275046020,-500.0,0.00029999,2]
[311635288,1705275046029,-500.0,0.00029999,2]
[311635289,1705275046039,-450.69373784,0.00029999,2]
[311635290,1705275046049,-500.0,0.00029999,2]
[311635291,1705275046058,-500.0,0.00029999,2]
[311635292,1705275046067,-500.0,0.00029999,2]
[311635293,1705275046077,-500.0,0.00029999,2]
[311635294,1705275046086,-368.54120323,0.00029999,2]
[311635295,1705275046095,-500.0,0.00029999,2]
[311635296,1705275046104,-500.0,0.00029999,2]
[311635297,1705275046113,-500.0,0.00029999,2]
[311635298,1705275046124,-500.0,0.00029999,2]
[311635299,1705275046138,-500.0,0.00029999,2]
[311635300,1705275046148,-301.75963063,0.00029999,2]
[311635301,1705275046158,-500.0,0.00029999,2]
[311635302,1705275046169,-500.0,0.00029999,2]
[311635303,1705275046179,-500.0,0.00029999,2]
[311635304,1705275046188,-500.0,0.00029999,2]
[311635305,1705275046198,-500.0,0.00029999,2]
[311635306,1705275046207,-500.0,0.00029999,2]
[311635307,1705275046219,-500.0,0.00029999,2]
[311635308,1705275046229,-500.0,0.00029999,2]
[311635309,1705275046239,-500.0,0.00029999,2]
[311635310,1705275046248,-500.0,0.00029999,2]
[311635311,1705275046257,-1706.75295606,0.00029999,2]
[311635312,1705275046267,-1706.75295606,0.00029999,2]
[311635313,1705275046276,-1706.75295606,0.00029999,2]
[311635314,1705275046285,-1706.75295606,0.00029999,2]
[311635315,1705275046294,-1706.75295606,0.00029999,2]
[311635316,1705275046303,-1706.75295606,0.00029999,2]
[311635317,1705275046313,-1706.75295606,0.00029999,2]
[311635318,1705275046322,-1706.75295606,0.00029999,2]
[311635319,1705275046332,-1706.75295606,0.00029999,2]
[311635320,1705275046342,-1706.75295606,0.00029999,2]
[311635321,1705275046351,-1706.75295606,0.00029999,2]
[311635322,1705275046360,-1706.75295606,0.00029999,2]
[311635323,1705275046370,-1706.75295606,0.00029999,2]
[311635324,1705275046379,-1706.75295606,0.00029999,2]
[311635325,1705275046389,-1706.75295606,0.00029999,2]
[311635326,1705275046398,-1706.75295606,0.00029999,2]
[311635327,1705275046407,-1706.75295606,0.00029999,2]
[311635328,1705275046416,-1706.75295594,0.00029999,2]
[311635330,1705275046426,-291.29302097,0.0003,4]
[311635332,1705275046435,-9629.9439869,0.0003,2]
[311635334,1705275046445,-700.48972757,0.0003,4]
[311635335,1705275046455,-1572.87627363,0.0003,2]
[311635336,1705275046465,-690.91027543,0.0003,2]
[311635337,1705275046474,-2500.0,0.0003,2]
[311635338,1705275046483,-904.74096856,0.0003,4]
[311635339,1705275046493,-582.05205839,0.0003,2]
[311635340,1705275046503,-11714.79269619,0.0003,4]
[311635341,1705275046512,-648.26024884,0.0003,4]
[311635342,1705275046522,-191701.17839507,0.0003,4]
[311635343,1705275046531,-413.43001973,0.0003,7]
[311635344,1705275046542,-827.92042913,0.0003,2]
[311635345,1705275046552,-200.0,0.0003,2]
[311635346,1705275046561,-28526.71723536,0.0003,4]
[311635347,1705275046570,-36005.75654642,0.0003,2]
[311635348,1705275046580,-160.12,0.0003,2]
[311635349,1705275046590,-4740.52715646,0.0003,4]
[311635350,1705275046599,-164.854162,0.0003,7]
[311635351,1705275046608,-164.854162,0.0003,7]
[311635352,1705275046617,-164.854162,0.0003,7]
[311635353,1705275046627,-164.854157,0.0003,7]
[311635354,1705275046636,-151.0,0.0003,7]
[311635355,1705275046645,-500.0,0.0003,2]
[311635356,1705275046654,-575.027146,0.0003,7]
[311635357,1705275046664,-575.027146,0.0003,7]
[311635358,1705275046673,-575.027146,0.0003,7]
[311635359,1705275046683,-575.027146,0.0003,7]
[311635360,1705275046692,-232.48,0.0003,2]
[311635361,1705275046702,-232.48,0.0003,2]
[311635362,1705275046711,-232.48,0.0003,2]
[311635363,1705275046720,-232.48,0.0003,2]
[311635364,1705275046730,-232.48,0.0003,2]
[311635365,1705275046739,-232.48,0.0003,2]
[311635366,1705275046748,-232.48,0.0003,2]
[311635367,1705275046758,-232.48,0.0003,2]
[311635368,1705275046767,-232.48,0.0003,2]
[311635369,1705275046776,-232.48,0.0003,2]
[311635370,1705275046786,-232.48,0.0003,2]
[311635371,1705275046795,-232.48,0.0003,2]
[311635372,1705275046805,-200.0,0.0003,2]
[311635373,1705275046814,-157.54,0.0003,2]
[311635374,1705275046823,-588.64695,0.0003,7]
[311635375,1705275046833,-588.646942,0.0003,7]
[311635376,1705275046842,-419.904677,0.0003,2]
[311635377,1705275046851,-150.0,0.0003,2]
[311635379,1705275046860,-151.0,0.0003,7]
[311635382,1705275046870,-3000.0,0.0003,2]
[311635384,1705275046879,-3000.0,0.0003,2]
[311635386,1705275046889,-3000.0,0.0003,2]
[311635388,1705275046898,-3000.0,0.0003,2]
[311635390,1705275046907,-3000.0,0.0003,2]
[311635392,1705275046916,-3000.0,0.0003,2]
[311635394,1705275046927,-151.0,0.0003,7]
[311635396,1705275046936,-1000.0,0.0003,2]
[311635398,1705275046946,-203.0,0.0003,2]
[311635400,1705275046956,-19806.44175043,0.00030038,2]
[311635402,1705275046965,-3415.78678427,0.000301,3]
[311635404,1705275046975,-251.65794723,0.000301,4]
[311635406,1705275046985,-6988.43156388,0.000301,2]
[311635408,1705275046994,-10000.0,0.00030104,2]
[311635410,1705275047003,-155.0,0.00030135,2]
[311635412,1705275047012,-300.0,0.00030135,2]
[311635414,1705275047022,-714.49,0.00030136,2]